[Event "129th New Zealand Championship 2022"]
[Site "Christchurch"]
[Date "2022.01.07"]
[Round "6.11"]
[White "Ha, Huy Minh (Timothy)"]
[Black "Tang, Hao"]
[Result "1/2-1/2"]
[ECO "B22"]
[WhiteElo "1637"]
[BlackElo "1838"]
[Annotator "NA RC"]
[PlyCount "159"]
[EventDate "2022.01.02"]
[EventType "swiss"]
[EventCountry "NZL"]
[SourceTitle "playchess.com"]
[Source "ChessBase"]
[SourceQuality "1"]
[TimeControl "40/5400+30:1800+30"]

1. e4 {[%emt 0:00:12]} c5 {[%emt 0:00:04]} 2. c3 {[%emt 0:00:18]} d5 {[%emt 0:00:06]} 3. exd5 {[%emt 0:00:05]} Qxd5 {[%emt 0:00:05]} 4. d4 {[%emt 0:00:09]} Nc6 {[%emt 0:00:11]} 5. Nf3 {[%emt 0:04:29]} Bg4 {[%emt 0:00:07]} 6. Nbd2 {[%emt 0:02:27]} cxd4 {[%emt 0:04:15]} 7. Bc4 {[%emt 0:00:42]} Qd7 {[%emt 0:07:52]} 8. cxd4 {[%emt 0:05:30]} e6 {[%emt 0:05:29]} 9. Bb5 {[%emt 0:08:29]} a6 {[%emt 0:12:35]} 10. Qa4 {[%emt 0:00:50]} Bxf3 {[%emt 0:05:54]} 11. Nxf3 {[%emt 0:00:42]} Rc8 {[%emt 0:00:32]} 12. Bxc6 {[%emt 0:01:12]} Qxc6 {[%emt 0:00:09]} 13. Qxc6+ {[%emt 0:01:27]} Rxc6 {[%emt 0:00:23]} 14. O-O {[%emt 0:00:10]} Bd6 {[%emt 0:04:35]} 15. Bd2 {[%emt 0:03:43]} Ne7 {[%emt 0:09:17]} 16. Rac1 {[%emt 0:00:38]} Rb6 {[%emt 0:00:34]} 17. Rc2 {[%emt 0:00:37]} O-O {[%emt 0:00:18]} 18. Rfc1 {[%emt 0:03:00]} Rd8 {[%emt 0:01:28]} 19. Ne5 {[%emt 0:07:58]} Rb5 {[%emt 0:04:34]} 20. Nf3 {[%emt 0:14:48]} Nc6 {[%emt 0:02:17]} 21. a3 {[%emt 0:00:28]} Rd5 {[%emt 0:01:50]} 22. Bc3 {[%emt 0:08:53]} Bf4 {[%emt 0:06:25]} 23. Re1 {[%emt 0:01:17]} Bb8 {[%emt 0:05:25]} 24. g3 {[%emt 0:00:46]} Ba7 {[%emt 0:00:48]} 25. Kg2 {[%emt 0:01:17]} g6 {[%emt 0:03:13]} 26. Re4 {[%emt 0:02:41]} R8d6 {[%emt 0:07:56]} 27. b4 {[%emt 0:02:28]} Nxd4 {[%emt 0:03:37]} 28. Nxd4 {[%emt 0:00:10]} Bxd4 {[%emt 0:00:20]} 29. Bxd4 {[%emt 0:00:17]} Rxd4 {[%emt 0:00:05]} 30. Rxd4 {[%emt 0:01:03]} Rxd4 {[%emt 0:00:09]} 31. Rc8+ {[%emt 0:00:04]} Kg7 {[%emt 0:00:13]} 32. Rc7 {[%emt 0:00:25]} Rd3 {[%emt 0:00:16]} 33. Rxb7 {[%emt 0:00:14]} Rxa3 {[%emt 0:00:19]} 34. Rb6 {[%emt 0:01:48]} Rb3 {[%emt 0:00:45]} 35. Rxa6 {[%emt 0:00:07]} Rxb4 {[%emt 0:00:09]} 36. Ra3 {[%emt 0:01:01]} h6 {[%emt 0:00:50]} 37. h3 {[%emt 0:00:27]} f5 {[%emt 0:00:12]} 38. h4 {[%emt 0:00:54]} Kf6 {[%emt 0:00:51]} 39. Kf3 {[%emt 0:00:00]} g5 {[%emt 0:00:00]} 40. hxg5+ {[%emt 0:00:00]} hxg5 {[%emt 0:00:00]} 41. Ra6 {[%emt 0:03:38]} Rb3+ {[%emt 0:04:02]} 42. Ke2 {[%emt 0:00:14]} Rc3 {[%emt 0:01:01]} 43. Rb6 {[%emt 0:02:22]} Rc5 {[%emt 0:00:27]} 44. Ra6 {[%emt 0:01:05]} Rc3 {[%emt 0:01:10]} 45. Rb6 {[%emt 0:00:32]} Ra3 {[%emt 0:00:17]} 46. Rb5 {[%emt 0:01:02]} f4 {[%emt 0:00:41]} 47. gxf4 {[%emt 0:00:35]} gxf4 {[%emt 0:00:05]} 48. f3 {[%emt 0:01:23]} e5 {[%emt 0:01:10]} 49. Rb6+ {[%emt 0:01:47]} Kf5 {[%emt 0:00:39]} 50. Rb8 {[%emt 0:00:10]} Ra2+ {[%emt 0:00:25]} 51. Kf1 {[%emt 0:01:14]} Ra5 {[%emt 0:02:28]} 52. Kf2 {[%emt 0:01:29]} Ra6 {[%emt 0:00:58]} 53. Rf8+ {[%emt 0:00:38]} Ke6 {[%emt 0:00:37]} 54. Rd8 {[%emt 0:00:25]} Rd6 {[%emt 0:00:41]} 55. Ra8 {[%emt 0:00:24]} Rd2+ {[%emt 0:00:28]} 56. Kf1 {[%emt 0:00:42]} Rb2 {[%emt 0:00:10]} 57. Ra5 {[%emt 0:00:16]} Kd6 {[%emt 0:00:40]} 58. Ke1 {[%emt 0:00:34]} Rc2 {[%emt 0:00:16]} 59. Kf1 {[%emt 0:00:15]} Rc5 {[%emt 0:00:08]} 60. Ra2 {[%emt 0:00:49]} Kd5 {[%emt 0:00:50]} 61. Ke2 {[%emt 0:01:22]} Rc3 {[%emt 0:00:58]} 62. Rd2+ {[%emt 0:01:38]} Kc4 {[%emt 0:00:43]} 63. Rd8 {[%emt 0:00:32]} Re3+ {[%emt 0:00:41]} 64. Kf2 {[%emt 0:00:11]} Kc3 {[%emt 0:00:51]} 65. Ra8 {[%emt 0:00:56]} Rd3 {[%emt 0:01:02]} 66. Re8 {[%emt 0:01:29]} Rd2+ {[%emt 0:00:31]} 67. Ke1 {[%emt 0:00:13]} Rd5 {[%emt 0:00:41]} 68. Ke2 {[%emt 0:00:13]} Kd4 {[%emt 0:03:17]} 69. Ra8 {[%emt 0:00:10]} Rb5 {[%emt 0:03:09]} 70. Rd8+ {[%emt 0:00:28]} Kc3 {[%emt 0:01:11]} 71. Rc8+ {[%emt 0:00:19]} Kb2 {[%emt 0:00:16]} 72. Rc4 {[%emt 0:03:31]} Rb3 {[%emt 0:03:10]} 73. Re4 {[%emt 0:00:27]} Rb5 {[%emt 0:00:27]} 74. Rc4 {[%emt 0:00:07]} Ka3 {[%emt 0:00:22]} 75. Rc8 {[%emt 0:01:00]} Kb4 {[%emt 0:02:18]} 76. Kd3 {[%emt 0:00:19]} Rc5 {[%emt 0:01:51]} 77. Rb8+ {[%emt 0:00:12]} Ka5 {[%emt 0:00:57]} 78. Ke4 {[%emt 0:00:31]} Rc3 {[%emt 0:00:49]} 79. Kxe5 {[%emt 0:00:16]} Rxf3 {[%emt 0:00:24]} 80. Ke4 {[%emt 0:00:45]} 1/2-1/2